fUSD/lending_fUSD_20260429
["ID","MTS","AMOUNT","RATE_DAILY","PERIOD"]
[421331223,1777447639822,-588.33921357,8.31e-05,2]
[421331224,1777447639837,-874.66842714,8.31e-05,2]
[421331225,1777447639888,-7.5492881,8.31e-05,2]
[421331226,1777447639925,-1470.55692881,8.31e-05,2]
[421331227,1777447639960,-573.24063737,8.31e-05,2]
[421331228,1777447640033,-897.31629144,8.31e-05,2]
[421331229,1777447640068,-1505.34464513,8.31e-05,2]
[421331230,1777447640103,-1505.34464513,8.31e-05,2]
[421331231,1777447640136,-678.65419147,8.31e-05,2]
[421331232,1777447640213,-826.69045366,8.31e-05,2]
[421331233,1777447640247,-1505.34464513,8.31e-05,2]
[421331234,1777447640281,-1505.34464513,8.31e-05,2]
[421331235,1777447640317,-819.90586703,8.31e-05,2]
[421331236,1777447640391,-685.4387781,8.31e-05,2]
[421331237,1777447640424,-1505.34464513,8.31e-05,2]
[421331238,1777447640458,-1505.34464513,8.31e-05,2]
[421331239,1777447640493,-1102.40921815,8.31e-05,2]
[421331240,1777447640615,-402.93542698,8.31e-05,2]
[421331241,1777447640650,-1505.34464513,8.31e-05,2]
[421331242,1777447640685,-1505.34464513,8.31e-05,2]
[421331243,1777447640720,-1505.34464513,8.31e-05,2]
[421331244,1777447641864,-1505.34464513,8.31e-05,2]
[421331245,1777447641899,-483.97606461,8.31e-05,2]
[421331246,1777447642050,-1021.36858052,8.31e-05,2]
[421331247,1777447642087,-1451.92819383,8.31e-05,2]
[421331248,1777447642236,-53.4164513,8.31e-05,2]
[421331249,1777447642274,-1505.34464513,8.31e-05,2]
[421331250,1777447642312,-377.14316201,8.31e-05,2]
[421331251,1777447642411,-1128.20148312,8.31e-05,2]
[421331252,1777447642448,-1238.26238863,8.31e-05,2]
[421331253,1777447642545,-267.0822565,8.31e-05,2]
[421331254,1777447642556,-142.63775711,8.31e-05,2]
[421331255,1777447642572,-1362.70688802,8.31e-05,2]
[421331256,1777447642582,-142.63775711,8.31e-05,2]
[421331257,1777447642615,-162.07127526,8.31e-05,2]
[421331258,1777447642693,-1200.63561276,8.31e-05,2]
[421331259,1777447642731,-1093.39412935,8.31e-05,2]
[421331260,1777447642772,-411.95051578,8.31e-05,2]
[421331261,1777447642810,-1505.34464513,8.31e-05,2]
[421331262,1777447642867,-1505.34464513,8.31e-05,2]
[421331263,1777447642905,-483.97606461,8.31e-05,2]
[421331264,1777447642989,-1021.36858052,8.31e-05,2]
[421331265,1777447643028,-1451.92819383,8.31e-05,2]
[421331266,1777447643076,-53.4164513,8.31e-05,2]
[421331267,1777447643112,-1505.34464513,8.31e-05,2]
[421331268,1777447643149,-377.14316201,8.31e-05,2]
[421331269,1777447643214,-1128.20148312,8.31e-05,2]
[421331270,1777447643251,-1238.26238863,8.31e-05,2]
[421331271,1777447643298,-267.0822565,8.31e-05,2]
[421331272,1777447643333,-1505.34464513,8.31e-05,2]
[421331273,1777447643368,-1505.34464513,8.31e-05,2]
[421331274,1777447643404,-1505.34464513,8.31e-05,2]
[421331275,1777447643480,-2633.30508762,8.31e-05,2]
[421331276,1777447643517,-2100.09473714,8.31e-05,2]
[421331277,1777447643556,-533.21035048,8.31e-05,2]
[421331278,1777447643587,-500.0,8.31e-05,2]
[421331279,1777447643618,-500.0,8.31e-05,2]
[421331280,1777447643649,-500.0,8.31e-05,2]
[421331281,1777447643679,-500.0,8.31e-05,2]
[421331282,1777447643710,-442.69726909,8.31e-05,2]
[421331283,1777447643743,-184.40250135,8.31e-05,2]
[421331284,1777447643774,-500.0,8.31e-05,2]
[421331285,1777447643807,-357.94935909,8.31e-05,2]
[421331286,1777447643837,-508.81,8.31e-05,2]
[421331287,1777447647516,-100.22860761,8.311e-05,2]
[421331288,1777447647541,-357.94935909,8.311e-05,2]
[421331289,1777447647555,-508.81,8.311e-05,2]
[421331290,1777447647585,-945.87103998,8.311e-05,2]
[421331291,1777447647598,-10000.01,8.311e-05,2]
[421331292,1777447647634,-10000.01,8.311e-05,2]
[421331293,1777447648021,-5000.01,8.311e-05,2]
[421331294,1777447648090,-5000.01,8.311e-05,2]
[421331295,1777447648190,-5000.01,8.311e-05,2]
[421331296,1777447648213,-5000.01,8.311e-05,2]
[421331297,1777447648299,-5000.01,8.311e-05,2]
[421331298,1777447648325,-5000.01,8.311e-05,2]
[421331299,1777447648354,-5000.01,8.311e-05,2]
[421331300,1777447648368,-5000.01,8.311e-05,2]
[421331301,1777447648382,-5000.01,8.311e-05,2]
[421331302,1777447648395,-10000.01,8.311e-05,2]
[421331303,1777447648408,-10000.01,8.311e-05,2]
[421331304,1777447648425,-10000.01,8.311e-05,2]
[421331305,1777447648439,-10000.01,8.311e-05,2]
[421331306,1777447648453,-10000.01,8.311e-05,2]
[421331307,1777447648609,-10000.01,8.311e-05,2]
[421331308,1777447648623,-10000.01,8.311e-05,2]
[421331309,1777447650710,-10000.01,8.311e-05,2]
[421331310,1777447652334,-174.61919141,8.301e-05,2]
[421331311,1777447652402,-4650.77161718,8.311e-05,2]
[421331312,1777447653622,-10000.01,8.311e-05,2]
[421331313,1777447653722,-10000.01,8.311e-05,2]
[421331314,1777447653817,-10000.01,8.311e-05,2]
[421331315,1777447653934,-10000.01,8.311e-05,2]
[421331316,1777447654059,-10000.01,8.311e-05,2]
[421331317,1777447654186,-10000.01,8.311e-05,2]
[421331318,1777447654283,-10000.01,8.311e-05,2]
[421331319,1777447654397,-10000.01,8.311e-05,2]
[421331320,1777447654525,-10000.01,8.311e-05,2]
[421331321,1777447655329,-5000.01,8.311e-05,2]
[421331322,1777447657417,-10000.01,8.311e-05,2]
[421331323,1777447658258,-5000.01,8.311e-05,2]
[421331324,1777447658388,-5000.01,8.311e-05,2]
[421331325,1777447658511,-5000.01,8.311e-05,2]
[421331326,1777447658654,-5000.01,8.311e-05,2]
[421331327,1777447659757,-10000.01,8.311e-05,2]
[421331328,1777447659862,-10000.01,8.311e-05,2]
[421331329,1777447660188,-10000.01,8.311e-05,2]
[421331330,1777447660328,-10000.01,8.311e-05,2]
[421331331,1777447660433,-10000.01,8.311e-05,2]
[421331332,1777447660546,-10000.01,8.311e-05,2]
[421331333,1777447660659,-10000.01,8.311e-05,2]
[421331334,1777447660782,-10000.01,8.311e-05,2]
[421331335,1777447660896,-10000.01,8.311e-05,2]
[421331336,1777447661673,-5000.01,8.311e-05,2]
[421331337,1777447663675,167.14,0.00030137,120]
[421331338,1777447664373,-5000.01,8.311e-05,2]
[421331339,1777447664556,-5000.01,8.311e-05,2]
[421331340,1777447664688,-5000.01,8.311e-05,2]
[421331341,1777447664828,-5000.01,8.311e-05,2]
[421331342,1777447664920,-5000.01,8.311e-05,2]
[421331343,1777447665778,-10000.01,8.311e-05,2]
[421331344,1777447666157,-10000.01,8.311e-05,2]
[421331345,1777447666298,-10000.01,8.311e-05,2]
[421331346,1777447666415,-10000.01,8.311e-05,2]
[421331347,1777447666522,-10000.01,8.311e-05,2]
[421331348,1777447666624,-10000.01,8.311e-05,2]
[421331349,1777447666749,-10000.01,8.311e-05,2]
[421331350,1777447666854,-10000.01,8.311e-05,2]
[421331351,1777447667007,-10000.01,8.311e-05,2]
[421331352,1777447668145,-5000.01,8.311e-05,2]
[421331353,1777447670295,-5000.01,8.311e-05,2]
[421331354,1777447670426,-5000.01,8.311e-05,2]
[421331355,1777447670539,-5000.01,8.311e-05,2]
[421331356,1777447670640,-5000.01,8.311e-05,2]
[421331357,1777447670745,-5000.01,8.311e-05,2]
[421331358,1777447671882,-10000.01,8.311e-05,2]
[421331359,1777447671976,-10000.01,8.311e-05,2]
[421331360,1777447672097,-10000.01,8.311e-05,2]
[421331361,1777447672212,-10000.01,8.311e-05,2]
[421331362,1777447672327,-1478.59322386,8.311e-05,2]
[421331363,1777447672353,-7042.82355228,8.311e-05,2]
[421331364,1777447682196,10000.01,8.206e-05,2]
[421331365,1777447682224,10000.01,8.206e-05,2]
[421331366,1777447728241,785.94,8.1e-05,120]
[421331368,1777447768147,1200.0,8.205e-05,2]
[421331370,1777447801203,300.0,8.205e-05,2]
[421331371,1777447801247,300.0,8.205e-05,2]
[421331372,1777447801280,1200.0,8.205e-05,2]
[421331373,1777447802006,150.0,8.205e-05,2]
[421331374,1777447802952,248.0,8.205e-05,2]
[421331375,1777447805890,300.0,8.205e-05,2]
[421331377,1777447818985,500.0,8.205e-05,2]
[421331378,1777447819029,500.0,8.205e-05,2]
[421331379,1777447819067,500.0,8.205e-05,2]
[421331380,1777447819110,500.0,8.205e-05,2]
[421331381,1777447819147,500.0,8.205e-05,2]
[421331382,1777447819197,500.0,8.205e-05,2]
[421331383,1777447819233,500.0,8.205e-05,2]
[421331384,1777447819275,500.0,8.205e-05,2]
[421331385,1777447819317,500.0,8.205e-05,2]
[421331386,1777447819359,500.0,8.205e-05,2]
[421331387,1777447819395,500.0,8.205e-05,2]
[421331388,1777447819431,500.0,8.205e-05,2]
[421331389,1777447819485,500.0,8.205e-05,2]
[421331390,1777447819521,500.0,8.205e-05,2]
[421331391,1777447819556,500.0,8.205e-05,2]
[421331392,1777447819593,2.01,8.205e-05,2]
[421331393,1777447819621,497.99,8.205e-05,2]
[421331394,1777447819656,500.0,8.205e-05,2]
[421331395,1777447819697,500.0,8.205e-05,2]
[421331396,1777447819737,500.0,8.205e-05,2]
[421331397,1777447819790,500.0,8.205e-05,2]
[421331398,1777447820244,500.0,8.205e-05,2]
[421331399,1777447820299,500.0,8.205e-05,2]
[421331400,1777447820337,500.0,8.205e-05,2]
[421331401,1777447820383,500.0,8.205e-05,2]
[421331402,1777447820421,500.0,8.205e-05,2]
[421331403,1777447820463,500.0,8.205e-05,2]
[421331404,1777447820501,500.0,8.205e-05,2]
[421331405,1777447820552,500.0,8.205e-05,2]
[421331406,1777447820594,500.0,8.205e-05,2]
[421331407,1777447820634,500.0,8.205e-05,2]
[421331408,1777447820674,500.0,8.205e-05,2]
[421331409,1777447820712,500.0,8.205e-05,2]
[421331410,1777447820751,500.0,8.205e-05,2]
[421331411,1777447820822,500.0,8.205e-05,2]
[421331412,1777447820874,500.0,8.205e-05,2]
[421331413,1777447820919,2.02,8.205e-05,2]
[421331414,1777447820949,497.98,8.205e-05,2]
[421331415,1777447820987,500.0,8.205e-05,2]
[421331416,1777447821035,500.0,8.205e-05,2]
[421331417,1777447821082,500.0,8.205e-05,2]
[421331418,1777447821131,500.0,8.205e-05,2]
[421331419,1777447821176,500.0,8.205e-05,2]
[421331420,1777447821215,500.0,8.205e-05,2]
[421331421,1777447821257,500.0,8.205e-05,2]
[421331422,1777447821302,500.0,8.205e-05,2]
[421331423,1777447821341,500.0,8.205e-05,2]
[421331424,1777447821381,500.0,8.205e-05,2]
[421331425,1777447821429,182.43641614,8.205e-05,2]
[421331429,1777447831713,-498.89387459,8.206e-05,2]
[421331430,1777447831727,-207175.80800878,8.206e-05,2]
[421331431,1777447831738,-29360.98735471,8.206e-05,2]
[421331432,1777447831926,-6378.94948713,8.206e-05,2]
[421331435,1777447834821,500.0,8.205e-05,2]
[421331436,1777447834859,500.0,8.205e-05,2]
[421331437,1777447834905,500.0,8.205e-05,2]
[421331438,1777447834947,500.0,8.205e-05,2]
[421331439,1777447835005,500.0,8.205e-05,2]
[421331440,1777447835457,500.0,8.205e-05,2]
[421331441,1777447835498,500.0,8.205e-05,2]
[421331442,1777447835555,500.0,8.205e-05,2]
[421331443,1777447835601,319.59358386,8.205e-05,2]
[421331444,1777447835630,180.40641614,8.205e-05,2]
[421331445,1777447835677,500.0,8.205e-05,2]
[421331446,1777447835721,500.0,8.205e-05,2]
[421331447,1777447835761,500.0,8.205e-05,2]
[421331448,1777447835804,500.0,8.205e-05,2]
[421331449,1777447835843,500.0,8.205e-05,2]
[421331450,1777447835880,500.0,8.205e-05,2]
[421331451,1777447835923,500.0,8.205e-05,2]
[421331452,1777447835961,500.0,8.205e-05,2]
[421331453,1777447835998,500.0,8.205e-05,2]
[421331454,1777447836043,500.0,8.205e-05,2]
[421331455,1777447836097,500.0,8.205e-05,2]
[421331456,1777447836149,500.0,8.205e-05,2]
[421331457,1777447836196,500.0,8.205e-05,2]
[421331458,1777447836233,500.0,8.205e-05,2]
[421331459,1777447836273,500.0,8.205e-05,2]
[421331460,1777447836309,500.0,8.205e-05,2]
[421331461,1777447836348,500.0,8.205e-05,2]
[421331462,1777447836412,182.43641614,8.205e-05,2]
[421331463,1777447837849,-36984.69245172,8.206e-05,2]
[421331464,1777447837863,-48993.48432967,8.206e-05,2]
[421331465,1777447837876,-829.67010334,8.206e-05,2]
[421331466,1777447837964,-340.65297838,8.206e-05,2]
[421331481,1777447840403,-17440.07805141,8.206e-05,2]
[421331482,1777447840440,-4033.83217871,8.206e-05,2]
[421331489,1777447842745,-888.0,8.206e-05,2]
[421331490,1777447842907,-15716.64290021,8.206e-05,2]
[421331493,1777447845841,-923.0,8.206e-05,2]
[421331494,1777447845854,-616.0,8.206e-05,2]
[421331495,1777447846217,-17836.35132159,8.206e-05,2]
[421331499,1777447847044,-380.99186082,8.206e-05,2]
[421331500,1777447849221,186.18175983,8.205e-05,2]
[421331502,1777447921599,300.0,8.205e-05,2]
[421331503,1777447982378,150.0,8.205e-05,2]
[421331506,1777448035942,500.98540789,8.205e-05,2]
[421331507,1777448035966,10000.01,8.205e-05,2]
[421331508,1777448035991,10000.01,8.205e-05,2]
[421331509,1777448036016,1602.68583618,8.205e-05,2]
[421331510,1777448041454,300.0,8.205e-05,2]
[421331511,1777448101151,1200.0,8.205e-05,2]
[421331516,1777448161541,300.0,8.205e-05,2]
[421331517,1777448162491,150.0,8.205e-05,2]
[421331518,1777448218051,1860.97900424,0.00030136,120]
[421331519,1777448223991,6032.40776,8.178e-05,2]
[421331520,1777448227729,414.91640382,8.206e-05,2]
[421331521,1777448227754,163.29283926,8.206e-05,2]
[421331523,1777448230940,9552.16786547,8.206e-05,2]
[421331524,1777448230978,284.54929527,8.206e-05,2]
[421331525,1777448231005,436.57836008,8.206e-05,2]
[421331526,1777448231067,1428.38747117,8.206e-05,2]
[421331527,1777448231227,257.20702649,8.206e-05,2]
[421331528,1777448231411,200.0,8.206e-05,2]
[421331529,1777448239427,2000.0,0.00030136,120]
[421331530,1777448240063,-7344.22101683,8.206e-05,2]
[421331531,1777448240194,-10000.01,8.206e-05,2]
[421331532,1777448240296,-10000.01,8.206e-05,2]
[421331533,1777448240417,-10000.01,8.206e-05,2]
[421331534,1777448240522,-10000.01,8.206e-05,2]
[421331535,1777448240767,743.50770149,8.206e-05,2]
[421331536,1777448242637,209.40437684,8.206e-05,2]
[421331537,1777448246361,-100000.0,8.206e-05,2]
[421331538,1777448249789,2000.0,0.00030136,120]
[421331539,1777448251656,174.61919141,8.206e-05,2]
[421331540,1777448255444,151.0,8.206e-05,2]
[421331541,1777448257093,2000.0,0.00030136,120]
[421331542,1777448257765,-8721.47873026,8.206e-05,2]
[421331543,1777448257847,-10000.01,8.206e-05,2]
[421331544,1777448257976,-10000.01,8.206e-05,2]
[421331545,1777448258075,-10000.01,8.206e-05,2]
[421331546,1777448258183,-10000.01,8.206e-05,2]
[421331547,1777448258287,-10000.01,8.206e-05,2]
[421331548,1777448265639,2000.0,0.00030136,120]
[421331549,1777448266386,6787.8403,8.106e-05,2]
[421331550,1777448267876,-203.84,8.2e-05,2]
[421331551,1777448268129,-9592.33,8.206e-05,2]
[421331552,1777448268146,-10000.01,8.206e-05,2]
[421331553,1777448268164,-10000.01,8.206e-05,2]
[421331554,1777448268180,-10000.01,8.206e-05,2]
[421331555,1777448268199,-10000.01,8.206e-05,2]
[421331556,1777448268214,-10000.01,8.206e-05,2]
[421331557,1777448272529,2000.0,0.00030136,120]
[421331558,1777448280068,2000.0,0.00030136,120]
[421331559,1777448286757,2000.0,0.00030136,120]
[421331560,1777448288353,19768.298384,7.945e-05,2]
[421331561,1777448292130,500.0,8.106e-05,2]
[421331562,1777448293675,2000.0,0.00030136,120]
[421331563,1777448301989,2000.0,0.00030136,120]
[421331564,1777448307524,2000.0,0.00030136,120]
[421331565,1777448315623,2000.0,0.00030136,120]
[421331566,1777448341079,4159.8346,8.106e-05,2]
[421331567,1777448347572,88322.3418,8.106e-05,2]
[421331568,1777448399017,150.0,7.932e-05,2]
[421331570,1777448432074,4578.4219,8.106e-05,2]
[421331571,1777448505091,2287.6191,8.106e-05,2]
[421331572,1777448517257,2000.0,0.00030137,120]
[421331573,1777448535156,2000.0,0.00030137,120]
[421331574,1777448551069,4000.0,0.00030137,120]
[421331575,1777448566600,5000.0,0.00030137,120]
[421331576,1777448584025,5000.0,0.00030137,120]
[421331577,1777448602464,5000.0,0.00030137,120]
[421331579,1777448621432,5000.0,0.00030137,120]
[421331581,1777448639302,5000.0,0.00030137,120]
[421331582,1777448646573,150.33,0.00030136,120]
[421331584,1777448649037,1534787.36503431,8.106e-05,2]
[421331585,1777448649075,217337.44646569,8.106e-05,2]
[421331586,1777448655166,5000.0,0.00030137,120]
[421331588,1777448671308,5000.0,0.00030137,120]
[421331589,1777448683530,453.56400129,0.00030136,120]
[421331590,1777448693488,5000.0,0.00030137,120]
[421331592,1777448714027,5000.0,0.00030137,120]
[421331593,1777448741034,1806.0,0.00030137,120]
[421331600,1777449029747,10000.0,0.00030137,120]
[421331601,1777449031808,-578.20924308,8.178e-05,2]
[421331603,1777449031819,-250.0,8.178e-05,2]
[421331604,1777449031828,-177.15473012,8.178e-05,2]
[421331605,1777449031841,-462.46160238,8.178e-05,2]
[421331606,1777449031857,-418.75,8.178e-05,2]
[421331607,1777449031870,-2058.0557545,8.178e-05,2]
[421331608,1777449031880,-256.0,8.178e-05,2]
[421331609,1777449031890,-300.0,8.203e-05,2]
[421331610,1777449031901,-1200.0,8.203e-05,2]
[421331611,1777449031911,-300.0,8.203e-05,2]
[421331612,1777449031922,-744.0,8.204e-05,2]
[421331613,1777449031933,-1000.0,8.205e-05,2]
[421331614,1777449031945,-300.0,8.205e-05,2]
[421331615,1777449031955,-4574.831,8.206e-05,2]
[421331616,1777449031965,-396.461,8.206e-05,2]
[421331617,1777449031975,-500.0,8.252e-05,2]
[421331618,1777449031985,-500.0,8.252e-05,2]
[421331619,1777449031995,-500.0,8.252e-05,2]
[421331620,1777449032005,-500.0,8.252e-05,2]
[421331621,1777449032015,-500.0,8.252e-05,2]
[421331622,1777449032027,-504.09729027,8.252e-05,2]
[421331623,1777449032037,-500.0,8.252e-05,2]
[421331624,1777449032047,-500.0,8.252e-05,2]
[421331625,1777449032057,-500.0,8.252e-05,2]
[421331626,1777449032067,-500.0,8.252e-05,2]
[421331627,1777449032078,-500.0,8.252e-05,2]
[421331628,1777449032088,-500.0,8.252e-05,2]
[421331629,1777449032099,-500.0,8.252e-05,2]
[421331630,1777449032109,-500.0,8.252e-05,2]
[421331631,1777449032119,-500.0,8.252e-05,2]
[421331632,1777449032129,-393.25409619,8.252e-05,2]
[421331633,1777449032139,-500.0,8.252e-05,2]
[421331634,1777449032148,-500.0,8.252e-05,2]
[421331635,1777449032159,-500.0,8.252e-05,2]
[421331636,1777449032169,-500.0,8.252e-05,2]
[421331637,1777449032179,-500.0,8.252e-05,2]
[421331639,1777449032189,-500.0,8.252e-05,2]
[421331640,1777449032198,-500.0,8.252e-05,2]
[421331641,1777449032207,-500.0,8.252e-05,2]
[421331642,1777449032216,-500.0,8.252e-05,2]
[421331643,1777449032226,-500.0,8.252e-05,2]
[421331644,1777449032235,-500.0,8.252e-05,2]
[421331645,1777449032244,-500.0,8.252e-05,2]
[421331646,1777449032254,-500.0,8.252e-05,2]
[421331647,1777449032264,-500.0,8.252e-05,2]
[421331648,1777449032274,-544.3204282,8.252e-05,2]
[421331649,1777449032284,-150.0,8.252e-05,2]
[421331650,1777449032294,-150.0,8.252e-05,2]
[421331651,1777449032304,-150.0,8.252e-05,2]
[421331652,1777449032313,-150.0,8.252e-05,2]
[421331653,1777449032323,-150.0,8.252e-05,2]
[421331654,1777449032333,-250.0,8.252e-05,2]
[421331655,1777449032343,-617.08578859,8.252e-05,2]
[421331657,1777449032352,-150.0,8.252e-05,2]
[421331658,1777449032362,-500.0,8.252e-05,2]
[421331659,1777449032372,-297.33797553,8.252e-05,2]
[421331660,1777449032381,-500.0,8.252e-05,2]
[421331661,1777449032391,-500.0,8.252e-05,2]
[421331662,1777449032400,-500.0,8.252e-05,2]
[421331663,1777449032410,-500.0,8.252e-05,2]
[421331664,1777449032420,-500.0,8.252e-05,2]
[421331665,1777449032430,-500.0,8.252e-05,2]
[421331666,1777449032440,-500.0,8.252e-05,2]
[421331667,1777449032450,-500.0,8.252e-05,2]
[421331668,1777449032461,-500.0,8.252e-05,2]
[421331669,1777449032472,-500.0,8.252e-05,2]
[421331670,1777449032482,-500.0,8.252e-05,2]
[421331671,1777449032492,-500.0,8.252e-05,2]
[421331672,1777449032502,-231.85832852,8.252e-05,2]
[421331673,1777449032511,-1002.4750944,8.322e-05,2]
[421331674,1777449032521,-150.0,8.351e-05,2]
[421331675,1777449032531,-9999.99,8.351e-05,2]
[421331676,1777449032541,-150.99,8.351e-05,2]
[421331677,1777449032551,-32953.2076,8.352e-05,2]
[421331678,1777449032561,-209.40437684,8.447e-05,2]
[421331679,1777449032571,-174.61919141,8.447e-05,2]
[421331680,1777449032581,-150.0,8.452e-05,2]
[421331681,1777449032592,-187.43129394,8.452e-05,2]
[421331682,1777449032602,-150.0,8.452e-05,2]
[421331683,1777449032613,-150.0,8.452e-05,2]
[421331684,1777449032623,-150.0,8.452e-05,2]
[421331685,1777449032633,-150.0,8.452e-05,2]
[421331686,1777449032643,-184.86011981,8.452e-05,2]
[421331687,1777449032653,-500.0,8.452e-05,2]
[421331688,1777449032664,-500.0,8.452e-05,2]
[421331689,1777449032674,-500.0,8.452e-05,2]
[421331690,1777449032686,-500.0,8.452e-05,2]
[421331691,1777449032695,-500.0,8.452e-05,2]
[421331692,1777449032708,-500.0,8.452e-05,2]
[421331693,1777449032717,-500.0,8.452e-05,2]
[421331694,1777449032728,-500.0,8.452e-05,2]
[421331695,1777449032739,-500.0,8.452e-05,2]
[421331696,1777449032748,-500.0,8.452e-05,2]
[421331697,1777449032759,-500.0,8.452e-05,2]
[421331698,1777449032769,-500.0,8.452e-05,2]
[421331699,1777449032780,-500.0,8.452e-05,2]
[421331700,1777449032790,-500.0,8.452e-05,2]
[421331701,1777449032799,-500.0,8.452e-05,2]
[421331702,1777449032809,-505.10474493,8.452e-05,2]
[421331703,1777449032819,-500.0,8.452e-05,2]
[421331704,1777449032829,-500.0,8.452e-05,2]
[421331705,1777449032839,-500.0,8.452e-05,2]
[421331706,1777449032850,-353.87756393,8.452e-05,2]
[421331707,1777449032860,-150.0,8.452e-05,2]
[421331708,1777449032869,-150.0,8.5e-05,2]
[421331709,1777449032879,-640.36404465,8.571e-05,2]
[421331710,1777449032889,-500.0,8.576e-05,2]
[421331711,1777449032899,-500.0,8.576e-05,2]
[421331712,1777449032909,-500.0,8.576e-05,2]
[421331713,1777449032919,-500.0,8.576e-05,2]
[421331714,1777449032928,-286.48728324,8.576e-05,2]
[421331715,1777449032940,-500.0,8.576e-05,2]
[421331716,1777449032951,-500.0,8.576e-05,2]
[421331717,1777449032962,-500.0,8.576e-05,2]
[421331718,1777449032972,-500.0,8.576e-05,2]
[421331719,1777449032983,-500.0,8.576e-05,2]
[421331720,1777449032993,-450.56455136,8.576e-05,2]
[421331721,1777449033005,-250.0,8.576e-05,2]
[421331722,1777449033017,-794618.3268,8.577e-05,2]
[421331723,1777449033027,-4034.05252928,8.578e-05,2]
[421331724,1777449033038,-1503.72229894,8.578e-05,2]
[421331725,1777449033050,-33104.2685,8.578e-05,2]
[421331726,1777449033060,-207.2677,8.578e-05,2]
[421331727,1777449033070,-200.0,8.673e-05,2]
[421331728,1777449033080,-1428.38747117,8.673e-05,2]
[421331729,1777449033090,-721.12765535,8.673e-05,2]
[421331730,1777449033099,-743.50770149,8.673e-05,2]
[421331731,1777449033109,-279.9045709,8.673e-05,2]
[421331732,1777449033119,-209.40437684,8.673e-05,2]
[421331733,1777449033129,-153.87363942,8.678e-05,2]
[421331734,1777449033139,-343.41951008,8.678e-05,2]
[421331735,1777449033151,-1190.08,8.682e-05,2]
[421331736,1777449033161,-2561.2978,8.712e-05,2]
[421331737,1777449033171,-407.04,8.726e-05,2]
[421331738,1777449033182,-215.07,8.8e-05,2]
[421331739,1777449033192,-500.0,8.803e-05,2]
[421331740,1777449033203,-381.78791891,8.803e-05,2]
[421331741,1777449033214,-150.0,8.861e-05,2]
[421331742,1777449033224,-150.0,8.976e-05,2]
[421331743,1777449033235,-184.76258549,8.995e-05,2]
[421331744,1777449033245,-181.08010149,8.995e-05,2]
[421331745,1777449033255,-5000.0,8.996e-05,2]
[421331746,1777449033265,-315.9977876,8.996e-05,2]
[421331747,1777449033275,-2500.0,8.996e-05,2]
[421331748,1777449033285,-2500.0,8.996e-05,2]
[421331749,1777449033295,-250.0,8.996e-05,2]
[421331750,1777449033305,-193.0,8.996e-05,2]
[421331751,1777449033315,-4060.36624995,8.996e-05,2]
[421331752,1777449033324,-300.0,8.996e-05,2]
[421331753,1777449033334,-5000.0,8.996e-05,2]
[421331754,1777449033344,-2500.0,8.996e-05,2]
[421331755,1777449033354,-250.0,8.996e-05,2]
[421331756,1777449033364,-2500.0,8.996e-05,2]
[421331757,1777449033374,-2500.0,8.996e-05,2]
[421331758,1777449033384,-6889.89098324,9e-05,2]
[421331759,1777449033394,-5000.0,9e-05,2]
[421331760,1777449033404,-407.04,9e-05,2]
[421331761,1777449033414,-420.0,9.023e-05,2]
[421331762,1777449033424,-1680.0,9.023e-05,2]
[421331763,1777449033434,-300.0,9.023e-05,2]
[421331764,1777449033443,-300.0,9.026e-05,2]
[421331765,1777449033453,-151.0,9.026e-05,5]
[421331766,1777449033463,-297.52,9.116e-05,2]
[421331767,1777449033473,-255.0,9.186e-05,2]
[421331768,1777449033483,-630.78800072,9.221e-05,2]
[421331769,1777449033493,-200.0,9.221e-05,2]
[421331770,1777449033503,-771.01748645,9.221e-05,2]
[421331771,1777449033513,-290.26104003,9.221e-05,2]
[421331772,1777449033523,-217.15233878,9.221e-05,2]
[421331773,1777449033534,-407.04,9.274e-05,2]
[421331774,1777449033544,-500.0,9.37e-05,2]
[421331775,1777449033554,-161.0,9.5e-05,2]
[421331776,1777449033564,-187.78006525,9.543e-05,2]
[421331777,1777449033575,-155.0,9.544e-05,2]
[421331778,1777449033584,-407.04,9.548e-05,2]